bitfinex-derivatives/quotes_BTCF0:USTF0_20241231
["timestamp","ask_amount","ask_price","bid_price","bid_amount"]
[1735630791676,4e-05,92855.0,92854.0,0.10696541]
[1735630793375,4e-05,92855.0,92854.0,0.08696541]
[1735630794182,0.00104,92855.0,92854.0,0.08696541]
[1735630795186,0.16251357,92855.0,92854.0,0.08696541]
[1735630796478,0.00104,92855.0,92854.0,0.08696541]
[1735630797691,0.14053411,92861.0,92854.0,0.05304541]
[1735630797897,0.13503438,92861.0,92860.0,0.414717]
[1735630798387,0.13503438,92861.0,92860.0,0.394717]
[1735630799088,0.053911,92870.0,92860.0,0.394717]
[1735630799291,0.004,92861.0,92860.0,0.394717]
[1735630800193,0.006,92861.0,92860.0,0.394717]
[1735630800791,0.002,92861.0,92860.0,0.394717]
[1735630801591,0.003,92861.0,92860.0,0.394717]
[1735630801989,0.001,92861.0,92860.0,0.394717]
[1735630802190,0.002,92861.0,92860.0,0.394717]
[1735630802590,0.002,92861.0,92860.0,0.44820244]
[1735630802790,0.001,92861.0,92860.0,0.44820244]
[1735630802992,0.002,92861.0,92860.0,0.44820244]
[1735630803499,0.002,92861.0,92860.0,0.41428544]
[1735630803881,0.002,92861.0,92860.0,0.46820244]
[1735630808386,0.002,92861.0,92860.0,0.44820244]
[1735630811702,0.001,92861.0,92860.0,0.44820244]
[1735630812191,0.053911,92870.0,92860.0,0.39428544]
[1735630812387,0.053911,92870.0,92862.0,0.053915]
[1735630812599,0.053911,92870.0,92866.0,4e-05]
[1735630813397,0.053911,92870.0,92862.0,0.033955]
[1735630813795,4e-05,92863.0,92862.0,0.033955]
[1735630815397,0.00304,92863.0,92862.0,0.033955]
[1735630815703,0.00404,92863.0,92862.0,0.033955]
[1735630818903,0.00404,92863.0,92860.0,0.39428544]
[1735630819303,4e-05,92861.0,92860.0,0.44820244]
[1735630821998,0.00304,92861.0,92860.0,0.44820244]
[1735630823604,0.00304,92861.0,92860.0,0.42820244]
[1735630824200,0.0379,92875.0,92860.0,0.42820244]
[1735630824201,0.19387146,92872.0,92869.0,0.053911]
[1735630825498,0.006,92872.0,92869.0,0.053911]
[1735630825698,0.008,92872.0,92869.0,0.053911]
[1735630826300,0.008,92872.0,92870.0,0.053911]
[1735630828091,0.20187146,92872.0,92870.0,0.053911]
[1735630828603,0.20187146,92872.0,92870.0,0.033911]
[1735630829105,0.19387146,92871.0,92870.0,0.033911]
[1735630830402,0.20187146,92872.0,92870.0,0.033911]
[1735630831195,0.003,92871.0,92870.0,0.033911]
[1735630831400,0.003,92871.0,92870.0,0.08866225]
[1735630831804,0.009,92871.0,92870.0,0.08866225]
[1735630832003,0.006,92871.0,92870.0,0.08866225]
[1735630832194,0.19987146,92871.0,92870.0,0.08866225]
[1735630832911,0.20287146,92871.0,92870.0,0.08866225]
[1735630833609,0.20287146,92871.0,92870.0,0.10866225]
[1735630835710,0.009,92871.0,92870.0,0.10866225]
[1735630838507,0.009,92871.0,92870.0,0.08866225]
[1735630841814,0.20287146,92871.0,92870.0,0.08866225]
[1735630843406,0.009,92871.0,92870.0,0.06866225]
[1735630848409,0.009,92871.0,92870.0,0.04866225]
[1735630849909,0.009,92871.0,92870.0,0.10231319]
[1735630853519,0.009,92871.0,92870.0,0.08231319]
[1735630858416,0.009,92871.0,92870.0,0.05365094]
[1735630858625,0.009,92871.0,92868.0,4e-05]
[1735630858925,0.009,92871.0,92870.0,0.053911]
[1735630859325,0.00904,92871.0,92870.0,0.053911]
[1735630859715,4e-05,92871.0,92870.0,0.053911]
[1735630860020,0.00704,92871.0,92870.0,0.053911]
[1735630860523,0.00804,92871.0,92870.0,0.053911]
[1735630862422,0.11000991,92871.0,92870.0,0.053911]
[1735630863114,0.11100991,92871.0,92870.0,0.053911]
[1735630863514,0.11100991,92871.0,92870.0,0.033911]
[1735630864314,0.11100991,92871.0,92868.0,0.05270028]
[1735630864630,4e-05,92869.0,92868.0,0.05270028]
[1735630866325,0.00504,92869.0,92868.0,0.05270028]
[1735630866931,0.00704,92869.0,92868.0,0.05270028]
[1735630868422,0.00704,92869.0,92868.0,0.03270028]
[1735630868623,0.00704,92869.0,92865.0,0.053913]
[1735630869128,4e-05,92866.0,92865.0,0.053913]
[1735630870325,4e-05,92866.0,92865.0,0.24802988]
[1735630870525,0.00404,92866.0,92865.0,0.24802988]
[1735630871735,0.00404,92866.0,92865.0,0.053913]
[1735630872124,0.00504,92866.0,92865.0,0.053913]
[1735630872533,0.00504,92866.0,92865.0,0.10721155]
[1735630873337,0.00504,92866.0,92865.0,0.08721155]
[1735630875335,0.14525584,92869.0,92865.0,0.05329855]
[1735630875644,0.58738726,92886.0,92864.0,0.19411688]
[1735630875828,0.053903,92883.0,92872.0,0.053909]
[1735630876024,0.58738726,92886.0,92872.0,1.5]
[1735630876226,0.58738726,92886.0,92869.0,0.3608]
[1735630876227,0.3608,92886.0,92877.0,0.053907]
[1735630876424,0.3608,92886.0,92882.0,4e-05]
[1735630876828,4e-05,92883.0,92882.0,4e-05]
[1735630877037,0.3608,92886.0,92885.0,0.053902]
[1735630877241,0.22764273,92890.0,92888.0,0.0539]
[1735630877242,0.22602725,92890.0,92888.0,0.0539]
[1735630877435,0.3608,92894.0,92893.0,0.053898]
[1735630877825,0.22602725,92896.0,92895.0,0.053896]
[1735630877826,0.18688725,92896.0,92895.0,0.053896]
[1735630878233,0.25417213,92903.0,92896.0,0.053896]
[1735630878532,0.36136001,92904.0,92897.0,0.0867]
[1735630878729,0.3608,92904.0,92897.0,0.140595]
[1735630878930,0.3608,92904.0,92897.0,0.0667]
[1735630879138,0.3608,92904.0,92898.0,0.053894]
[1735630879533,0.001,92903.0,92902.0,0.053892]
[1735630880142,0.34136794,92904.0,92902.0,0.053892]
[1735630880733,0.001,92903.0,92902.0,0.054892]
[1735630882346,0.002,92903.0,92902.0,0.054892]
[1735630882842,0.00161491,92909.0,92903.0,0.053892]
[1735630883538,0.00161491,92909.0,92903.0,0.033892]
[1735630883735,0.00161491,92909.0,92902.0,0.05422031]
[1735630883935,0.00161491,92909.0,92904.0,0.053891]
[1735630884136,0.00561491,92909.0,92904.0,0.053891]
[1735630884438,4e-05,92905.0,92904.0,0.053891]
[1735630886042,0.00304,92905.0,92904.0,0.053891]
[1735630886546,0.00704,92905.0,92899.0,0.05272648]
[1735630886740,0.060931,92905.0,92898.0,0.053894]
[1735630887042,4e-05,92899.0,92898.0,0.053894]
[1735630888336,4e-05,92899.0,92898.0,0.033894]
[1735630888539,0.00104,92899.0,92898.0,0.033894]
[1735630889241,0.00404,92899.0,92898.0,0.033894]
[1735630893350,0.00404,92899.0,92898.0,0.013894]
[1735630893555,0.00404,92899.0,92897.0,0.48025859]
[1735630893852,4e-05,92898.0,92897.0,0.48025859]
[1735630895052,0.00204,92898.0,92897.0,0.48025859]
[1735630895448,0.00204,92898.0,92897.0,0.45505859]
[1735630895649,0.00304,92898.0,92897.0,0.41355859]
[1735630898356,0.00304,92898.0,92897.0,0.39355859]
[1735630899353,0.00304,92898.0,92897.0,1.89355859]
[1735630901157,0.00304,92898.0,92897.0,0.39355859]
[1735630901748,0.00304,92898.0,92897.0,1.89355859]
[1735630902751,0.00304,92898.0,92897.0,0.39355859]
[1735630903452,0.00304,92898.0,92897.0,0.37355859]
[1735630904449,0.00304,92898.0,92897.0,0.46205859]
[1735630904648,0.00161491,92909.0,92897.0,0.46205859]
[1735630904960,0.00161491,92909.0,92899.0,0.14635558]
[1735630905260,0.00161491,92909.0,92904.0,0.053891]
[1735630906261,0.00461491,92909.0,92904.0,0.053891]
[1735630906660,0.00161491,92909.0,92904.0,0.053891]
[1735630906867,0.00661491,92909.0,92904.0,0.053891]
[1735630907251,0.00661491,92909.0,92905.0,0.05389]
[1735630907647,0.00561491,92909.0,92905.0,0.05389]
[1735630907955,0.00861491,92909.0,92905.0,0.05389]
[1735630908354,0.00861491,92909.0,92905.0,0.03389]
[1735630909059,0.05389,92907.0,92905.0,0.03389]
[1735630909663,0.05389,92907.0,92905.0,0.22782384]
[1735630910361,0.05989,92907.0,92905.0,0.22782384]
[1735630910558,0.05989,92907.0,92906.0,0.19393384]
[1735630911257,0.42069,92907.0,92906.0,0.19393384]
[1735630911760,0.053891,92905.0,92904.0,0.19393384]
[1735630912160,0.053931,92905.0,92904.0,0.19393384]
[1735630913161,0.053893,92902.0,92899.0,0.12707079]
[1735630913346,0.053893,92902.0,92899.0,0.033893]
[1735630913552,4e-05,92900.0,92899.0,0.033893]
[1735630915065,4e-05,92900.0,92897.0,0.24669243]
[1735630915454,4e-05,92898.0,92897.0,0.24669243]
[1735630915757,4e-05,92898.0,92897.0,0.05275859]
[1735630915958,4e-05,92898.0,92894.0,0.053897]
[1735630916351,4e-05,92895.0,92894.0,0.053897]
[1735630917561,0.00104,92895.0,92894.0,0.10679935]
[1735630918055,0.00104,92895.0,92894.0,0.36498828]
[1735630918562,0.00104,92895.0,92894.0,0.34498828]
[1735630919059,0.00204,92895.0,92894.0,0.05290235]
[1735630919365,0.053897,92894.0,92892.0,4e-05]
[1735630919557,0.0447,92893.0,92892.0,4e-05]
[1735630919860,0.04474,92893.0,92892.0,4e-05]
[1735630920657,0.04474,92893.0,92892.0,0.05404418]
[1735630923573,0.04474,92893.0,92886.0,0.19365906]
[1735630923865,0.098638,92893.0,92886.0,0.19365906]
[1735630924059,4e-05,92887.0,92886.0,0.19365906]
[1735630924854,4e-05,92887.0,92886.0,0.19465906]
[1735630925166,4e-05,92887.0,92886.0,0.004]
[1735630925572,4e-05,92887.0,92886.0,0.05755158]
[1735630928359,4e-05,92887.0,92886.0,0.03755158]
[1735630928559,4e-05,92887.0,92886.0,0.004]
[1735630933363,4e-05,92887.0,92880.0,0.05606116]
[1735630933560,4e-05,92887.0,92880.0,0.05478116]
[1735630933754,0.36140001,92888.0,92877.0,0.0923]
[1735630933755,4e-05,92881.0,92877.0,0.0923]
[1735630934162,4e-05,92878.0,92877.0,0.0923]
[1735630934369,4e-05,92878.0,92877.0,1.64653649]
[1735630934772,0.053904,92882.0,92880.0,0.00596]
[1735630935170,0.053904,92882.0,92877.0,1.64773649]
[1735630935371,0.053904,92882.0,92880.0,0.002]
[1735630935878,4e-05,92881.0,92880.0,0.008]
[1735630937873,4e-05,92881.0,92880.0,0.007]
[1735630938667,4e-05,92881.0,92880.0,0.005]
[1735630938865,4e-05,92881.0,92878.0,0.0303]
[1735630939069,4e-05,92881.0,92879.0,0.053905]
[1735630939272,0.415341,92888.0,92879.0,0.053905]
[1735630939465,4e-05,92880.0,92879.0,0.053905]
[1735630940766,4e-05,92880.0,92879.0,0.061905]
[1735630942372,4e-05,92880.0,92879.0,0.008]
[1735630943473,4e-05,92880.0,92878.0,0.0303]
[1735630943474,4e-05,92880.0,92878.0,0.0183]
[1735630943867,4e-05,92879.0,92878.0,0.0183]
[1735630944974,4e-05,92879.0,92878.0,0.0233]
[1735630945376,4e-05,92879.0,92878.0,0.0183]
[1735630945563,4e-05,92879.0,92878.0,0.0233]
[1735630946179,4e-05,92879.0,92878.0,0.0253]
[1735630948367,4e-05,92879.0,92878.0,0.0053]
[1735630950176,4e-05,92879.0,92878.0,0.002]
[1735630950377,0.00104,92879.0,92878.0,0.008]
[1735630950766,4e-05,92879.0,92878.0,0.26018893]
[1735630950967,4e-05,92879.0,92878.0,0.26518893]
[1735630952872,4e-05,92879.0,92878.0,0.007]
[1735630953374,4e-05,92879.0,92877.0,0.18744349]
[1735630953674,4e-05,92878.0,92877.0,0.18744349]
[1735630953975,4e-05,92878.0,92877.0,0.54824349]
[1735630954371,4e-05,92878.0,92877.0,0.55324349]
[1735630954570,4e-05,92878.0,92877.0,0.55524349]
[1735630956572,4e-05,92878.0,92877.0,0.19444349]
[1735630956777,4e-05,92878.0,92877.0,0.55424349]
[1735630958384,4e-05,92878.0,92877.0,0.53424349]
[1735630960983,4e-05,92878.0,92877.0,0.52114349]
[1735630961782,4e-05,92878.0,92877.0,0.16034349]
[1735630963481,4e-05,92878.0,92877.0,0.11414349]
[1735630967987,4e-05,92878.0,92877.0,0.37252102]
[1735630968490,4e-05,92878.0,92877.0,0.35252102]
[1735630970293,4e-05,92878.0,92877.0,0.35052102]
[1735630970492,0.00104,92878.0,92877.0,0.35052102]
[1735630970878,0.00404,92878.0,92877.0,0.34652102]
[1735630971893,0.00404,92878.0,92877.0,0.08814349]
[1735630973485,0.00404,92878.0,92877.0,0.06814349]
[1735630978386,0.00404,92878.0,92877.0,0.04814349]
[1735630979497,0.053898,92892.0,92877.0,0.04814349]
[1735630979698,0.07317779,92900.0,92883.0,0.3608]
[1735630980000,0.053899,92891.0,92883.0,0.3608]
[1735630980195,0.07317779,92900.0,92883.0,0.3608]
[1735630980691,0.0439,92892.0,92883.0,0.3608]
[1735630980896,0.0439,92892.0,92884.0,0.19376268]
[1735630981996,0.0539,92889.0,92884.0,0.19376268]
[1735630982200,0.0539,92889.0,92884.0,0.19476268]
[1735630983101,0.0539,92889.0,92885.0,0.19376268]
[1735630983288,0.0559,92889.0,92885.0,0.19376268]
[1735630983488,0.0559,92889.0,92885.0,0.17376268]
[1735630984001,0.0609,92889.0,92885.0,0.17376268]
[1735630984402,0.0619,92889.0,92885.0,0.17376268]
[1735630985903,0.0619,92889.0,92883.0,0.3608]
[1735630986403,4e-05,92884.0,92883.0,0.3608]
[1735630986798,0.04018553,92893.0,92883.0,0.3608]
[1735630986989,0.0539,92889.0,92883.0,0.3608]
[1735630987189,0.0559,92889.0,92883.0,0.3608]
[1735630987703,0.053901,92888.0,92883.0,0.3608]
[1735630988402,0.053901,92888.0,92883.0,0.3408]
[1735630990407,0.055901,92888.0,92883.0,0.3408]
[1735630990906,0.057901,92888.0,92883.0,0.3408]
[1735630993509,0.057901,92888.0,92883.0,0.3208]
[1735630995612,0.057901,92888.0,92881.0,0.0446]
[1735630995812,0.057901,92888.0,92882.0,0.3608]
[1735630996214,4e-05,92883.0,92882.0,0.3608]
[1735630997509,0.00404,92883.0,92882.0,0.3608]
[1735630998707,0.00604,92883.0,92882.0,0.3608]
[1735630999013,0.00604,92883.0,92882.0,0.3408]
[1735631003007,0.00604,92883.0,92882.0,0.59915025]
[1735631003510,0.00604,92883.0,92882.0,0.57915025]
[1735631006012,0.00604,92883.0,92882.0,0.3208]
[1735631008322,0.00604,92883.0,92882.0,0.3008]
[1735631009116,0.00604,92883.0,92881.0,0.0446]
[1735631009422,4e-05,92882.0,92881.0,0.0446]
[1735631009816,0.3608,92894.0,92881.0,0.0446]
[1735631010020,0.30689801,92894.0,92884.0,0.07317779]
[1735631010217,0.30689801,92894.0,92889.0,0.0539]
[1735631010418,0.053895,92897.0,92889.0,0.0539]
[1735631010612,0.3608,92905.0,92890.0,1.5]
[1735631010813,0.04721491,92907.0,92902.0,0.3608]
[1735631011017,0.04721491,92907.0,92903.0,0.0459]
[1735631011724,0.053891,92905.0,92903.0,0.0459]
[1735631012723,0.053891,92905.0,92903.0,0.10175233]
[1735631012924,0.053891,92905.0,92903.0,0.0469]
[1735631013524,0.053891,92905.0,92903.0,0.0269]
[1735631013917,0.053891,92905.0,92903.0,0.0279]
[1735631014227,0.056891,92905.0,92903.0,0.0269]
[1735631018429,0.056891,92905.0,92903.0,0.001]
[1735631023522,0.056891,92905.0,92902.0,0.39502364]
[1735631023829,4e-05,92903.0,92902.0,0.39502364]
[1735631024827,4e-05,92903.0,92902.0,0.39602364]
[1735631025127,0.00404,92903.0,92902.0,0.39602364]
[1735631025333,0.00904,92903.0,92902.0,0.39602364]
[1735631026535,0.00904,92903.0,92902.0,0.05422364]
[1735631028429,0.00904,92903.0,92902.0,0.03422364]
[1735631028629,0.00904,92903.0,92902.0,0.001]
[1735631033436,0.00904,92903.0,92898.0,0.00128]
[1735631033619,0.00904,92903.0,92897.0,0.053895]
[1735631033823,4e-05,92899.0,92897.0,0.053895]
[1735631034024,4e-05,92898.0,92897.0,0.053895]
[1735631034631,4e-05,92898.0,92897.0,0.414695]
[1735631034826,0.01,92903.0,92902.0,0.053892]
[1735631035419,0.00161491,92907.0,92898.0,1.5]
[1735631035619,0.0461,92922.0,92898.0,1.5]
[1735631035620,0.053884,92916.0,92911.0,0.053887]
[1735631035927,4e-05,92912.0,92911.0,0.053887]
[1735631037731,0.00704,92912.0,92911.0,0.054887]
[1735631038134,0.01204,92912.0,92911.0,0.055887]
[1735631038524,0.01204,92912.0,92911.0,0.035887]
[1735631042832,0.01204,92912.0,92911.0,0.08949937]
[1735631043332,0.01204,92912.0,92911.0,0.06949937]
[1735631043522,0.01204,92912.0,92911.0,0.05561237]
[1735631043920,0.01204,92912.0,92911.0,0.10949937]
[1735631044123,0.01204,92912.0,92911.0,0.05561237]
[1735631048433,0.01204,92912.0,92911.0,0.03561237]
[1735631048634,0.01204,92912.0,92909.0,0.053888]
[1735631049035,4e-05,92910.0,92909.0,0.053888]
[1735631050538,4e-05,92910.0,92909.0,0.10808291]
[1735631050737,4e-05,92910.0,92909.0,0.11008291]
[1735631051242,4e-05,92910.0,92909.0,0.10908291]
[1735631051436,0.01304,92910.0,92909.0,0.11008291]
[1735631053432,0.01304,92910.0,92909.0,0.09008291]
[1735631056837,0.00904,92910.0,92909.0,0.08908291]
[1735631057139,0.00604,92910.0,92909.0,0.05419491]
[1735631057339,0.36684,92910.0,92902.0,0.25834161]
[1735631057643,4e-05,92903.0,92902.0,0.25834161]
[1735631058047,0.04314,92903.0,92902.0,0.31201868]
[1735631058231,0.04314,92903.0,92902.0,0.25834161]
[1735631058635,0.04314,92903.0,92889.0,0.3608]
[1735631058838,0.053897,92895.0,92889.0,0.34241453]
[1735631059140,4e-05,92893.0,92889.0,0.34241453]
[1735631059339,4e-05,92890.0,92889.0,0.3962803]
[1735631060545,0.00204,92890.0,92889.0,0.3962803]
[1735631060934,0.00704,92890.0,92889.0,0.3962803]
[1735631063240,0.00704,92890.0,92889.0,0.41466577]
[1735631063444,0.00704,92890.0,92889.0,0.39466577]
[1735631065739,0.00704,92890.0,92889.0,0.03386577]
[1735631065938,0.00704,92890.0,92889.0,0.3608]
[1735631068353,0.00704,92890.0,92889.0,0.3408]
[1735631070955,0.00704,92890.0,92886.0,0.053901]
[1735631071252,0.00704,92890.0,92888.0,0.3608]
[1735631071253,0.007,92890.0,92888.0,0.3608]
[1735631071437,0.002,92890.0,92888.0,0.3608]
[1735631071644,0.0539,92889.0,92888.0,0.3608]
[1735631071843,0.05394,92889.0,92880.0,0.05456145]
[1735631072049,0.0425,92888.0,92879.0,0.21468279]
[1735631072243,4e-05,92881.0,92879.0,0.21468279]
[1735631072445,4e-05,92880.0,92879.0,0.26728676]
[1735631073445,4e-05,92880.0,92879.0,0.24728676]
[1735631073951,0.00104,92880.0,92879.0,0.17410897]
[1735631075549,0.00204,92880.0,92879.0,0.17410897]
[1735631076352,0.00204,92880.0,92879.0,0.05260397]
[1735631076551,0.00204,92880.0,92877.0,0.3608]
[1735631076854,4e-05,92878.0,92877.0,0.3608]
[1735631078056,0.00104,92878.0,92877.0,0.3608]
[1735631078450,0.00104,92878.0,92877.0,0.3408]
[1735631079253,0.00104,92878.0,92877.0,0.39361375]
[1735631083459,0.00104,92878.0,92877.0,0.37361375]
[1735631088363,0.00104,92878.0,92877.0,0.35361375]
[1735631093566,0.00104,92878.0,92877.0,0.33361375]
[1735631096670,0.00104,92878.0,92877.0,0.05281375]
[1735631096871,0.00104,92878.0,92875.0,0.25834161]
[1735631097262,4e-05,92876.0,92875.0,0.25834161]
[1735631098360,4e-05,92876.0,92875.0,0.23834161]
[1735631098972,0.22781445,92887.0,92875.0,0.23834161]
[1735631099173,0.053905,92881.0,92877.0,0.3608]
[1735631100673,0.054905,92881.0,92877.0,0.3608]
[1735631100971,0.053906,92878.0,92877.0,0.3608]
[1735631101470,0.053907,92876.0,92875.0,0.05523243]
[1735631101664,0.053907,92876.0,92868.0,0.32174151]
[1735631101665,0.053911,92869.0,92868.0,0.32174151]
[1735631102664,0.414711,92869.0,92868.0,0.32174151]
[1735631102872,0.053916,92861.0,92860.0,0.00161489]
[1735631103263,0.053956,92861.0,92860.0,0.05563791]
[1735631103463,0.053956,92861.0,92860.0,0.00161489]
[1735631104169,0.053956,92861.0,92860.0,0.00761489]
[1735631104873,0.052956,92861.0,92860.0,0.00761489]
[1735631106273,0.052956,92861.0,92860.0,0.009]
[1735631106660,0.052956,92861.0,92860.0,0.06348692]
[1735631106874,0.052956,92861.0,92860.0,0.009]
[1735631113481,0.053918,92858.0,92857.0,0.0431046]
[1735631113683,0.053919,92856.0,92852.0,0.55467267]
[1735631114075,0.053961,92853.0,92852.0,0.60995874]
[1735631114276,0.053961,92853.0,92852.0,0.24915874]
[1735631114486,0.053961,92853.0,92852.0,0.05528607]
[1735631114675,4e-05,92853.0,92848.0,0.19387267]
[1735631114982,0.051963,92849.0,92848.0,0.19387267]
[1735631115173,0.051963,92849.0,92844.0,0.0012]
[1735631115487,0.053924,92848.0,92842.0,0.24779967]
[1735631115682,4e-05,92845.0,92843.0,1.72524175]
[1735631115985,4e-05,92844.0,92843.0,1.77944886]
[1735631116883,0.052964,92848.0,92843.0,1.77944886]
[1735631117188,0.052964,92848.0,92843.0,1.78144886]
[1735631117486,0.052964,92848.0,92843.0,1.78644886]
[1735631118979,0.052964,92848.0,92843.0,1.76644886]
[1735631120687,0.052964,92848.0,92844.0,0.3608]
[1735631122182,0.07317779,92854.0,92844.0,0.3608]
[1735631122379,0.3608,92849.0,92843.0,0.26444886]
[1735631122687,0.3608,92849.0,92844.0,0.002]
[1735631123276,4e-05,92845.0,92844.0,0.002]
[1735631123687,4e-05,92845.0,92844.0,0.006]
[1735631125585,4e-05,92845.0,92844.0,0.004]
[1735631125785,4e-05,92845.0,92844.0,0.006]
[1735631127091,4e-05,92845.0,92844.0,0.004]
[1735631127291,4e-05,92845.0,92844.0,0.19987267]
[1735631128287,0.04574,92845.0,92844.0,0.19987267]
[1735631128589,0.08954,92845.0,92844.0,0.17987267]
[1735631128787,0.08954,92845.0,92844.0,0.004]
[1735631129581,0.08954,92845.0,92844.0,0.006]
[1735631130192,0.08954,92845.0,92844.0,0.003]
[1735631130383,0.09254,92845.0,92844.0,0.003]
[1735631130879,0.05574,92845.0,92844.0,0.001]
[1735631133386,0.053932,92834.0,92833.0,0.3408]
[1735631133788,0.053972,92834.0,92833.0,0.3408]
[1735631134084,0.053972,92834.0,92833.0,0.39437603]
[1735631134997,0.055972,92834.0,92833.0,0.39437603]
[1735631135191,0.056972,92834.0,92833.0,0.39437603]
[1735631138399,0.056972,92834.0,92833.0,0.37437603]
[1735631142000,0.056972,92834.0,92833.0,0.05357603]
[1735631142191,0.00304,92834.0,92826.0,0.3608]
[1735631142389,0.053935,92829.0,92826.0,0.3608]
[1735631142604,0.053975,92829.0,92826.0,0.3608]
[1735631143499,0.053975,92829.0,92826.0,0.34084]
[1735631143698,0.053975,92829.0,92828.0,0.001]
[1735631144097,0.053935,92829.0,92828.0,0.001]
[1735631144302,0.053975,92829.0,92828.0,0.001]
[1735631144904,0.053975,92829.0,92826.0,0.002]
[1735631145290,4e-05,92827.0,92826.0,0.002]
[1735631145809,0.053935,92829.0,92828.0,0.00096]
[1735631146609,0.053935,92829.0,92828.0,0.00196]
[1735631147391,0.053935,92829.0,92828.0,0.001]
[1735631148696,0.3608,92839.0,92828.0,0.001]
[1735631148894,0.3608,92839.0,92829.0,0.11757779]
[1735631149103,0.053932,92833.0,92829.0,0.16317779]
[1735631149301,0.053932,92833.0,92829.0,0.09]
[1735631152407,0.053926,92844.0,92829.0,0.09]
[1735631152597,0.36140001,92850.0,92837.0,0.3608]
[1735631152799,0.41532301,92850.0,92838.0,0.097029]
[1735631153008,0.36140001,92850.0,92838.0,0.11627779]
[1735631153207,0.36140001,92850.0,92838.0,0.18945558]
[1735631153405,0.053918,92857.0,92846.0,0.033925]
[1735631153604,0.3608,92868.0,92853.0,0.3608]
[1735631153605,0.053915,92863.0,92853.0,0.3608]
[1735631153910,0.053915,92863.0,92854.0,0.0431]
[1735631154406,0.053915,92863.0,92854.0,0.09702]
[1735631154610,0.004,92857.0,92854.0,0.09702]
[1735631154999,0.062915,92863.0,92856.0,0.053919]
[1735631155000,0.009,92863.0,92856.0,0.053919]
[1735631155196,0.009,92863.0,92854.0,0.0431]
[1735631155397,0.35180001,92868.0,92866.0,0.053913]
[1735631155707,0.053907,92877.0,92867.0,0.0876]
[1735631155900,0.053907,92877.0,92867.0,0.16077779]
[1735631156300,0.053907,92877.0,92867.0,0.19909358]
[1735631157010,0.053907,92877.0,92873.0,0.3608]
[1735631157411,0.053907,92877.0,92867.0,0.19909358]
[1735631157906,0.060907,92877.0,92867.0,0.20009358]
[1735631158095,0.064907,92877.0,92867.0,0.20009358]
[1735631158295,0.066907,92877.0,92873.0,0.001]
[1735631158600,0.066907,92877.0,92867.0,0.18009358]
[1735631158800,0.062907,92877.0,92875.0,0.3608]
[1735631160507,0.065907,92877.0,92875.0,0.3608]
[1735631160810,0.067907,92877.0,92875.0,0.3608]
[1735631161207,0.058907,92877.0,92875.0,0.3608]
[1735631161404,0.067907,92877.0,92875.0,0.3618]
[1735631162105,0.067907,92877.0,92875.0,0.41544215]
[1735631163407,0.014,92877.0,92875.0,0.44935015]
[1735631163807,0.014,92877.0,92876.0,0.0444]
[1735631164911,0.053902,92887.0,92876.0,0.0444]
[1735631165115,0.014,92877.0,92876.0,0.099307]
[1735631167012,0.009,92877.0,92876.0,0.099307]
[1735631167527,0.053902,92886.0,92876.0,0.099307]
[1735631167723,0.053902,92886.0,92883.0,0.3608]
[1735631168425,0.044,92891.0,92883.0,0.3408]
[1735631168620,0.053902,92885.0,92883.0,0.3408]
[1735631170226,0.009,92886.0,92884.0,0.053903]
[1735631170227,0.014,92886.0,92884.0,0.053903]
[1735631170419,0.013198,92886.0,92884.0,0.053903]
[1735631171128,0.006,92885.0,92884.0,0.053903]
[1735631171913,0.008198,92886.0,92884.0,0.054903]
[1735631171914,0.015198,92886.0,92884.0,0.054903]
[1735631173326,0.29680329,92896.0,92886.0,0.11149358]
[1735631173923,0.053899,92892.0,92886.0,0.11149358]
[1735631174926,0.053899,92892.0,92886.0,0.11249358]
[1735631175827,0.060899,92892.0,92886.0,0.11249358]
[1735631176522,0.060899,92892.0,92886.0,0.16689148]
[1735631178229,0.007,92892.0,92886.0,0.22079248]
[1735631178421,0.29680329,92896.0,92886.0,0.21979248]
[1735631178620,0.053895,92897.0,92886.0,0.21979248]
[1735631178821,0.053895,92897.0,92886.0,0.19979248]
[1735631179632,0.0475,92902.0,92892.0,0.053898]
[1735631179827,0.0475,92902.0,92893.0,0.053897]
[1735631180024,0.0475,92902.0,92892.0,0.11149358]
[1735631180329,0.0475,92902.0,92897.0,0.053895]
[1735631183223,0.0475,92902.0,92897.0,0.10903711]
[1735631183427,0.0475,92902.0,92897.0,0.08903711]
[1735631183624,0.0475,92902.0,92897.0,0.44983711]
[1735631188437,0.0475,92902.0,92897.0,0.41594211]
[1735631188936,0.0475,92902.0,92897.0,0.46983711]
[1735631190139,0.0475,92902.0,92897.0,0.41594211]
[1735631190331,0.053892,92903.0,92899.0,0.053894]
[1735631191325,0.053892,92903.0,92901.0,0.053893]
[1735631191526,0.054892,92903.0,92901.0,0.053893]
[1735631192330,0.001,92903.0,92901.0,0.053893]
[1735631193434,0.001,92903.0,92901.0,0.033893]
[1735631198539,0.001,92903.0,92898.0,0.25746907]
[1735631198948,0.001,92903.0,92901.0,0.053893]
[1735631200136,0.001,92903.0,92902.0,0.3608]
[1735631200548,0.05389,92906.0,92902.0,0.3608]
[1735631200846,0.001,92903.0,92902.0,0.3608]
[1735631203247,0.001,92903.0,92897.0,0.31261118]
[1735631203446,0.053895,92898.0,92897.0,0.03514211]
[1735631203639,0.44954,92902.0,92895.0,0.25746907]
[1735631203839,0.053896,92896.0,92895.0,0.25746907]
[1735631204843,0.053896,92896.0,92890.0,0.11214372]
[1735631204844,0.44946001,92902.0,92890.0,0.11214372]
[1735631205038,0.053898,92893.0,92890.0,0.11214372]
[1735631205240,0.053898,92893.0,92890.0,0.03901096]
[1735631205437,0.053898,92893.0,92887.0,0.053901]
[1735631206840,0.053899,92890.0,92887.0,0.09144429]
[1735631207034,0.053899,92890.0,92887.0,0.03754329]